bitfinex/quotes_ETHUSD_20260225
["timestamp","ask_amount","ask_price","bid_price","bid_amount"]
[1772052986225,2.12220575,2082.9,2081.7,1.20091223]
[1772052986397,2.12220575,2082.9,2081.5,2.31426392]
[1772052986603,4.43558072,2083.0,2081.4,3.23538869]
[1772052986604,2.12220575,2082.6,2081.4,1.20108796]
[1772052986801,2.12220575,2082.5,2081.4,1.20108796]
[1772052987027,2.12220575,2082.5,2082.1,0.001]
[1772052987229,2.12220575,2082.5,2081.4,1.20108796]
[1772052987429,2.12220575,2082.5,2081.5,5.54965261]
[1772052987638,1.20019203,2083.0,2081.9,0.001]
[1772052987639,2.12220575,2082.9,2081.9,0.001]
[1772052987937,2.12220575,2082.7,2081.9,0.001]
[1772052989798,1.20042254,2082.6,2081.9,0.001]
[1772052990225,1.20042254,2082.6,2081.9,0.0002]
[1772052993328,6.92389594,2082.7,2081.9,0.0002]
[1772052993329,4.80120403,2082.9,2082.1,2.1287929]
[1772052994038,4.80120403,2082.9,2082.2,1.20065315]
[1772052994359,1.20024965,2082.9,2082.2,3.32944605]
[1772052994507,1.20216418,2083.1,2082.4,2.1287929]
[1772052994703,2.2565489,2083.0,2082.1,2.1287929]
[1772052995229,2.2565489,2083.0,2082.1,3.32950139]
[1772052995408,2.2565489,2083.0,2082.1,3.32870139]
[1772052995806,1.20216418,2083.1,2082.2,2.1287929]
[1772052995807,3.45871309,2083.1,2082.2,2.1287929]
[1772052996130,2.2565489,2083.0,2082.2,3.3294103]
[1772052996629,2.2565489,2083.0,2082.1,2.83267383]
[1772052997009,2.2565489,2083.0,2082.1,1.20067383]
[1772052997209,2.2565489,2083.0,2082.1,4.96146673]
[1772052997408,2.2565489,2083.0,2082.2,2.1287929]
[1772052998111,2.2565489,2083.0,2082.3,3.32938839]
[1772052998312,1.20216419,2083.0,2082.3,3.32938839]
[1772052998532,3.45871309,2083.0,2082.3,2.1287929]
[1772052998745,4.80253766,2083.3,2082.6,5.36418159]
[1772052998746,1.20205083,2083.3,2082.6,5.36418159]
[1772052998921,0.002,2083.3,2082.7,2.1287929]
[1772052999252,1.2020237,2083.3,2082.7,2.1287929]
[1772052999906,0.002,2083.3,2082.8,2.1287929]
[1772053000113,1.20202075,2083.3,2082.8,2.1287929]
[1772053000331,0.002,2083.3,2082.8,3.32827025]
[1772053000539,0.002,2083.3,2082.8,4.96029762]
[1772053001406,0.002,2082.8,2082.2,1.20059549]
[1772053001612,0.002,2083.0,2082.5,2.1287929]
[1772053001940,0.002,2083.3,2082.7,5.36418159]
[1772053002355,0.002,2083.3,2082.7,6.56449855]
[1772053003741,0.002,2083.3,2082.8,2.1287929]
[1772053004219,0.002,2083.3,2082.8,3.7647929]
[1772053004425,2.2585489,2083.3,2082.5,4.96422933]
[1772053004919,2.2585489,2083.3,2082.5,3.32922933]
[1772053005119,2.2585489,2083.3,2082.6,1.636]
[1772053005654,2.2585489,2083.3,2082.2,2.1287929]
[1772053006147,2.2565489,2083.1,2082.4,5.36418159]
[1772053006336,3.4585681,2083.3,2082.5,2.1287929]
[1772053006544,3.4585681,2083.3,2082.1,4.80361262]
[1772053006545,2.2565489,2083.2,2082.2,3.32939864]
[1772053006836,2.2565489,2083.2,2082.2,4.96839864]
[1772053007042,2.2565489,2083.2,2082.2,2.1287929]
[1772053007240,2.2565489,2083.2,2082.2,4.96843827]
[1772053007927,2.2565489,2083.2,2082.3,1.638]
[1772053008246,2.2565489,2083.2,2082.2,3.32943827]
[1772053008450,2.2565489,2083.0,2082.2,4.96743827]
[1772053008819,2.2565489,2083.0,2082.3,2.1287929]
[1772053010259,3.45668331,2083.1,2082.3,2.1287929]
[1772053010837,3.45668331,2083.1,2082.4,1.20053784]
[1772053011946,3.45668331,2083.1,2082.3,3.32934155]
[1772053012549,1.20203133,2083.3,2082.7,2.1287929]
[1772053013133,0.002,2083.3,2082.8,1.20030727]
[1772053013545,0.002,2082.9,2082.8,1.20030727]
[1772053013742,0.002,2083.1,2082.4,3.32933074]
[1772053014573,0.002,2083.1,2082.4,2.1287929]
[1772053014735,2.2585489,2083.1,2082.2,3.32940584]
[1772053014940,2.2585489,2083.1,2082.2,4.96540584]
[1772053015144,1.20019203,2083.0,2082.2,4.96540584]
[1772053016758,1.20019203,2083.0,2082.1,1.2016737]
[1772053016759,2.08091131,2082.9,2082.1,1.2016737]
[1772053017238,3.28121858,2082.8,2082.1,1.2016737]
[1772053019970,2.08091131,2082.8,2082.2,2.30802499]
[1772053020160,4.80264078,2083.1,2082.4,2.30802499]
[1772053020161,3.28305297,2083.1,2082.4,2.30802499]
[1772053020369,3.28305297,2083.1,2082.3,2.11212747]
[1772053020681,2.08091131,2083.0,2082.0,4.8029466]
[1772053020846,2.08091131,2082.4,2081.2,2.11212747]
[1772053021173,2.08091131,2082.2,2081.6,1.20198645]
[1772053021359,1.20055231,2082.4,2081.6,1.20198645]
[1772053021546,3.28146362,2082.4,2081.6,0.001]
[1772053021749,2.08091131,2082.3,2081.6,0.001]
[1772053023558,1.20065315,2082.2,2081.6,0.001]
[1772053025286,3.28154765,2082.3,2081.6,0.001]
[1772053025586,1.2005098,2082.5,2081.8,0.001]
[1772053026472,3.28142111,2082.5,2081.8,0.001]
[1772053027373,2.08091131,2082.4,2081.8,0.001]
[1772053027706,2.08091131,2082.1,2081.6,0.001]
[1772053029057,1.20065315,2082.2,2081.6,0.001]
[1772053029784,4.80261262,2082.3,2081.6,0.001]
[1772053030296,2.08091131,2082.2,2081.6,0.001]
[1772053031773,1.20071082,2082.1,2081.6,0.001]
[1772053032683,3.28162213,2082.1,2081.6,0.001]
[1772053032886,2.08091131,2082.0,2081.6,0.001]
[1772053033866,1.20082616,2081.9,2081.6,0.001]
[1772053035206,1.20067595,2082.2,2081.6,0.001]
[1772053036977,9.64151003,2082.3,2081.6,0.001]
[1772053037201,9.64151003,2082.3,2081.6,2.11312747]
[1772053039122,3.28151003,2082.3,2081.6,3.31409516]
[1772053040296,3.28151003,2082.3,2081.8,0.001]
[1772053040614,0.002,2082.1,2081.8,0.001]
[1772053041316,2.08091131,2082.8,2081.8,0.001]
[1772053041493,2.08091131,2082.8,2081.8,1.628]
[1772053043504,2.08091131,2082.6,2081.9,1.20082616]
[1772053043812,2.08091131,2082.6,2081.8,1.20187753]
[1772053045610,3.2813915,2082.5,2081.8,0.001]
[1772053045829,2.11325787,2082.4,2081.8,0.001]
[1772053048121,1.20059549,2082.3,2081.8,0.001]
[1772053049722,2.11325787,2082.2,2081.8,0.001]
[1772053050129,4.80238198,2082.6,2081.8,0.001]
[1772053050130,2.12560385,2082.6,2081.8,2.04006694]
[1772053050303,4.8014608,2082.7,2081.8,2.04006694]
[1772053050304,4.75448222,2082.5,2081.8,2.04006694]
[1772053050510,2.12560385,2082.5,2081.8,2.04006694]
[1772053052417,1.20053784,2082.4,2081.8,3.24094204]
[1772053053192,1.20052274,2082.5,2081.9,2.03906694]
[1772053053626,0.002,2082.3,2081.9,2.03906694]
[1772053054565,0.002,2082.3,2082.0,1.20076849]
[1772053054730,0.002,2082.3,2082.1,2.03906694]
[1772053054933,0.002,2082.3,2081.9,1.20079369]
[1772053055440,0.002,2082.3,2082.0,2.03906694]
[1772053056754,0.002,2082.3,2082.1,3.23977776]
[1772053057475,0.002,2082.3,2081.9,1.628]
[1772053057476,2.12760385,2082.3,2081.9,1.628]
[1772053057641,0.002,2082.3,2081.8,1.20187572]
[1772053057838,0.002,2082.3,2081.8,3.24094266]
[1772053058033,0.002,2082.3,2081.8,3.24094445]
[1772053058454,0.002,2082.3,2081.8,2.04006694]
[1772053058653,0.002,2082.3,2081.8,0.001]
[1772053059070,2.12760385,2082.3,2081.8,0.001]
[1772053061175,2.12760385,2082.3,2081.6,8.47300318]
[1772053061176,2.12560385,2082.1,2081.6,0.001]
[1772053061489,2.12560385,2081.9,2081.6,0.001]
[1772053063283,2.12560385,2081.7,2081.6,0.001]
[1772053065080,2.12560385,2081.7,2081.1,0.001]
[1772053065458,3.32660308,2081.6,2081.1,0.001]
[1772053066684,3.32660308,2081.6,2081.5,0.001]
[1772053067074,3.32660308,2081.6,2081.1,0.001]
[1772053067075,2.12560385,2081.5,2081.1,0.001]
[1772053067480,2.12560385,2081.5,2080.9,0.001]
[1772053067481,2.12560385,2081.3,2080.9,0.001]
[1772053067995,2.12560385,2081.2,2080.6,0.001]
[1772053070093,3.32689163,2081.1,2080.6,0.001]
[1772053072985,3.32678019,2081.3,2080.6,2.04006694]
[1772053073834,2.12560385,2081.2,2080.6,0.001]
[1772053073985,1.20128778,2081.1,2080.6,0.001]
[1772053075322,1.20122453,2081.3,2080.6,2.04006694]
[1772053076112,3.18440887,2081.6,2080.8,2.16166892]
[1772053076420,1.20103171,2081.6,2080.8,2.16166892]
[1772053077002,1.20103171,2081.6,2080.8,1.622]
[1772053077321,1.20103171,2081.6,2080.9,2.16166892]
[1772053077526,4.80391739,2081.7,2081.0,2.16166892]
[1772053077527,1.20097109,2081.7,2081.0,2.16166892]
[1772053078120,1.20097109,2081.7,2081.1,2.16166892]
[1772053079823,0.002,2081.3,2081.1,2.16166892]
[1772053081220,1.20263398,2082.3,2081.3,2.16166892]
[1772053081418,1.20263398,2082.3,2081.1,1.20127698]
[1772053081419,3.18601114,2082.3,2081.6,2.16166892]
[1772053081837,1.98337716,2082.2,2081.6,2.16166892]
[1772053082025,0.002,2082.3,2081.6,2.16166892]
[1772053082330,1.98337716,2082.2,2080.8,0.001]
[1772053082526,1.98337716,2081.1,2080.1,0.001]
[1772053082697,1.98337716,2080.9,2080.1,0.001]
[1772053082900,1.98337716,2080.9,2080.1,3.36452576]
[1772053083299,1.98337716,2080.9,2080.1,2.16266892]
[1772053083712,1.98337716,2080.9,2080.1,3.36452831]
[1772053084133,1.98337716,2080.1,2078.9,0.001]
[1772053084332,1.98337716,2079.8,2078.9,0.001]
[1772053084949,1.98337716,2079.8,2078.6,0.001]
[1772053084950,3.23470078,2079.0,2078.6,0.001]
[1772053085269,1.98337716,2079.2,2078.6,0.001]
[1772053086180,1.98337716,2079.6,2078.6,0.001]
[1772053086630,1.98337716,2079.5,2078.6,0.001]
[1772053088260,1.98337716,2079.3,2078.6,0.001]
[1772053089530,1.20226988,2079.4,2078.6,2.16266892]
[1772053089727,1.20226988,2079.4,2078.6,0.001]
[1772053089939,3.18564704,2079.4,2078.6,0.001]
[1772053090516,1.98337716,2079.3,2078.6,0.001]
[1772053090971,1.98337716,2079.3,2076.8,2.16166892]
[1772053090972,1.98337716,2078.6,2076.8,2.16166892]
[1772053091269,1.98337716,2078.4,2077.0,2.16166892]
[1772053091569,1.98337716,2078.4,2077.2,2.16166892]
[1772053092771,3.1862255,2078.4,2078.3,0.001]
[1772053092954,3.1862255,2078.4,2077.3,3.36515421]
[1772053093474,3.1862255,2078.4,2077.4,2.16166892]
[1772053094136,3.1862255,2078.4,2077.1,3.36523531]
[1772053094137,1.98337716,2078.1,2077.1,3.36523531]
[1772053094336,3.1862255,2078.4,2077.2,2.16166892]
[1772053094768,3.1862255,2078.4,2077.3,3.36515421]
[1772053095567,3.1862255,2078.4,2077.3,2.16166892]
[1772053097362,1.20284834,2078.4,2077.5,2.16166892]
[1772053097572,1.20284834,2078.4,2077.6,1.624]
[1772053097963,4.81101829,2078.6,2077.6,1.624]
[1772053098165,4.81101829,2078.6,2077.6,3.78566892]
[1772053098362,1.2027326,2078.6,2077.7,2.16166892]
[1772053098672,1.20271922,2078.7,2077.7,2.16166892]
[1772053099251,1.20255904,2078.9,2077.9,2.16166892]
[1772053099469,1.20255904,2078.9,2077.4,3.23470078]
[1772053099470,1.98337716,2078.1,2076.8,2.16166892]
[1772053099655,1.98337716,2078.1,2076.9,2.16166892]
[1772053100055,1.98337716,2078.4,2077.3,2.16166892]
[1772053100257,1.98337716,2078.4,2077.4,1.622]
[1772053101380,1.20290622,2078.3,2077.5,1.20336943]
[1772053101547,1.20290622,2078.3,2077.5,3.36503835]
[1772053101748,1.20290622,2078.3,2076.4,2.16166892]
[1772053101749,1.98337716,2077.6,2076.4,2.16166892]
[1772053101947,1.91668653,2077.8,2076.6,2.16166892]
[1772053102572,3.90006369,2077.8,2076.7,1.623]
[1772053102747,3.90006369,2077.8,2076.3,2.16166892]
[1772053102748,5.21807794,2077.3,2076.3,2.16166892]
[1772053102951,1.98337716,2077.3,2076.3,2.16166892]
[1772053103150,1.98337716,2077.3,2076.3,3.36571246]
[1772053103356,1.20354323,2077.2,2076.3,3.36571246]
[1772053103561,1.20354323,2077.2,2076.4,1.622]
[1772053104246,1.20354323,2077.2,2076.3,2.16166892]
[1772053104446,6.42162117,2077.2,2076.4,1.622]
[1772053105071,1.20354323,2077.2,2076.8,0.001]
[1772053105442,4.81411631,2077.4,2076.8,0.001]
[1772053107264,4.81232631,2078.0,2077.0,2.17846019]
[1772053107556,4.81232631,2078.0,2077.1,3.79846019]
[1772053108275,4.81232631,2078.0,2077.1,5.00205416]
[1772053108576,4.81232631,2078.0,2077.2,2.17846019]
[1772053108947,7.00347743,2078.3,2077.3,1.619]
[1772053109348,7.00347743,2078.3,2077.3,2.17846019]
[1772053109576,7.00347743,2078.3,2077.4,1.618]
[1772053111453,3.23470078,2078.1,2076.8,3.39717336]
[1772053111784,4.81167847,2078.3,2076.8,3.39717336]
[1772053111785,2.00869857,2078.0,2077.0,2.19240797]
[1772053113278,1.20313778,2077.9,2077.0,3.39604634]
[1772053113681,1.20313778,2077.9,2077.1,2.19240797]
[1772053115495,1.2029641,2078.2,2077.3,2.19240797]
[1772053117476,1.2029641,2078.2,2077.4,2.19240797]
[1772053117690,1.2029641,2078.2,2077.3,1.20348181]
[1772053117691,1.2029641,2078.2,2077.5,3.80340797]
[1772053118162,0.002,2077.7,2077.5,3.80340797]
[1772053122806,0.002,2077.9,2077.5,3.80340797]
[1772053123102,0.002,2077.9,2077.3,1.612]
[1772053123279,0.002,2077.9,2077.3,3.80440797]
[1772053124500,0.002,2077.9,2077.2,0.001]
[1772053124803,0.002,2077.9,2077.3,1.612]
[1772053127496,0.002,2077.9,2077.4,1.612]
[1772053128505,3.21383635,2077.9,2077.2,2.19340797]
[1772053128727,1.20513778,2077.9,2077.3,3.80440797]
[1772053128899,1.20513778,2077.9,2077.4,2.19240797]
[1772053130717,3.21369827,2078.2,2077.4,2.19240797]
[1772053131007,3.21369827,2078.2,2077.6,2.19240797]
[1772053131389,0.002,2077.7,2077.6,2.19240797]
[1772053133615,0.002,2077.9,2077.7,2.19240797]
[1772053134681,0.002,2077.9,2077.8,1.613]
[1772053139203,0.002,2077.9,2077.8,1.617]
[1772053139406,0.002,2078.2,2077.8,1.617]
[1772053139407,0.002,2078.2,2077.9,2.17054363]
[1772053139996,2.15699379,2078.1,2077.4,2.17054363]
[1772053140197,0.002,2078.2,2077.4,2.17054363]
[1772053140390,2.15699379,2078.0,2077.3,1.618]
[1772053140590,2.15699379,2077.8,2077.3,1.618]
[1772053141018,2.15699379,2077.8,2077.2,0.001]
[1772053141324,2.15699379,2077.8,2076.7,0.001]
[1772053141325,2.15699379,2077.4,2076.7,0.001]
[1772053141809,2.15699379,2077.4,2076.7,3.08847542]
[1772053142199,2.15699379,2077.4,2076.7,0.001]
[1772053142400,2.15699379,2077.4,2076.5,0.001]
[1772053142401,2.15699379,2077.1,2076.5,0.001]
[1772053142601,2.15699379,2076.8,2076.2,0.1655512]
[1772053142796,5.03927765,2076.7,2076.2,0.1655512]
[1772053142991,2.15699379,2076.7,2076.2,0.1655512]
[1772053143319,2.15699379,2076.3,2075.1,3.36436579]
[1772053143705,2.87961739,2076.2,2075.2,2.15964604]
[1772053143900,2.15699379,2076.2,2075.2,2.15964604]
[1772053144345,1.902,2076.5,2074.7,4.98170062]
[1772053144346,2.15699379,2076.0,2074.7,4.98170062]
[1772053144507,2.15699379,2076.0,2074.8,2.15872209]
[1772053144715,2.87444842,2075.9,2074.8,2.15872209]
[1772053145016,2.15699379,2076.0,2074.8,2.15872209]
[1772053145211,2.15699379,2076.0,2075.0,4.48344467]
[1772053145212,3.36129072,2075.9,2075.0,4.48344467]
[1772053145407,1.20429693,2075.9,2075.2,2.32080266]
[1772053145606,5.91025379,2076.2,2075.4,2.32080266]
[1772053145808,3.36114108,2076.2,2075.4,4.48236578]
[1772053146102,1.902,2076.5,2075.6,4.48236578]
[1772053146103,3.36098677,2076.5,2075.6,4.48236578]
[1772053146304,3.36098677,2076.5,2075.7,2.16156312]
[1772053146502,1.20386542,2076.7,2075.9,4.48236578]
[1772053147126,3.36085921,2076.7,2075.7,2.16045483]
[1772053147309,1.20394895,2076.5,2075.7,2.16045483]
[1772053147510,3.36089448,2076.6,2075.7,5.68564555]
[1772053147716,6.71963754,2077.0,2076.0,2.32080266]
[1772053147717,1.2038707,2076.7,2076.0,2.32080266]
[1772053148034,1.2038707,2076.7,2075.9,1.619]
[1772053148336,1.2038707,2076.7,2075.9,2.159354]
[1772053148508,1.2038707,2076.7,2075.9,3.778354]
[1772053149133,2.15699379,2076.6,2075.5,2.15819494]
[1772053149322,1.20394895,2076.5,2075.6,1.618]
[1772053149508,1.20394895,2076.5,2075.6,3.77619494]
[1772053150105,3.36093014,2076.6,2075.6,2.15819494]
[1772053150327,1.20371707,2076.9,2075.8,2.15701108]
[1772053150522,2.15699379,2076.8,2075.8,2.15701108]
[1772053150940,2.15699379,2076.8,2075.9,2.15579759]
[1772053151111,2.32080266,2076.7,2075.5,6.97386868]
[1772053151312,3.36094274,2076.5,2075.5,4.97732661]
[1772053151833,2.15699379,2076.8,2075.8,2.15456448]
[1772053152534,2.15699379,2077.0,2076.0,2.15456448]
[1772053153243,3.36094274,2076.5,2075.7,1.20441296]
[1772053154118,3.36079871,2076.8,2075.8,30.0]
[1772053154316,3.36079871,2076.8,2075.9,2.15202073]
[1772053154539,3.36079871,2076.8,2076.0,2.20072073]
[1772053155212,3.36079871,2076.8,2076.0,0.0487]
[1772053155427,2.15699379,2076.7,2076.0,0.0487]
[1772053155736,2.15699379,2077.0,2076.2,2.14938888]
[1772053155939,0.002,2076.6,2076.2,2.14938888]
[1772053156242,2.15899379,2076.6,2076.0,1.25293362]
[1772053156540,2.15899379,2076.6,2076.0,0.0487]
[1772053157120,2.15899379,2076.6,2075.9,1.20429573]
[1772053157121,2.15699379,2076.4,2075.6,0.001]
[1772053157330,3.36105871,2076.3,2075.6,0.001]
[1772053157836,1.20404652,2076.4,2075.6,2.14763356]
[1772053158212,2.32080266,2076.3,2075.6,0.001]
[1772053158416,2.15699379,2076.2,2075.6,0.001]
[1772053159216,2.15699379,2076.0,2075.4,0.001]
[1772053159421,2.15699379,2075.7,2075.1,0.001]
[1772053159935,2.15699379,2075.8,2075.1,0.001]
[1772053160309,1.20429693,2075.9,2075.1,0.001]
[1772053160310,2.15699379,2075.6,2075.1,0.001]
[1772053161315,3.36140675,2075.7,2075.1,0.001]
[1772053161542,2.15699379,2075.6,2075.1,0.001]
[1772053162041,1.20441296,2075.7,2075.1,0.001]
[1772053162235,3.36140675,2075.7,2075.1,0.001]
[1772053162422,2.15699379,2075.6,2075.1,0.001]
[1772053163012,1.20441296,2075.7,2075.1,0.001]
[1772053163440,2.15699379,2075.6,2075.1,0.001]
[1772053163842,2.15699379,2075.9,2075.2,2.32080266]
[1772053164144,2.15699379,2076.0,2075.2,2.14045375]
[1772053164346,2.15699379,2076.0,2075.1,0.001]
[1772053164647,2.15699379,2075.8,2075.1,0.001]
[1772053164843,2.15699379,2075.7,2075.1,0.001]
[1772053165047,2.15699379,2075.5,2074.5,1.20510966]
[1772053165245,2.15699379,2075.5,2074.3,4.96989628]
[1772053165448,2.15699379,2075.3,2074.3,4.96989628]
[1772053165742,2.15699379,2075.3,2074.6,2.32080266]
[1772053165943,2.15699379,2075.3,2074.5,2.1384089]
[1772053166147,2.15699379,2075.3,2074.3,2.8299431]
[1772053166351,1.20458706,2075.4,2074.3,1.20518536]
[1772053166352,2.2554625,2075.1,2074.3,1.20518536]
[1772053166549,2.2554625,2075.1,2074.2,4.82112395]
[1772053166850,2.2554625,2075.1,2074.2,1.20524065]
[1772053167350,1.20481927,2075.0,2074.1,4.82120623]
[1772053167550,3.46028177,2075.0,2074.1,4.82120623]
[1772053167846,3.46028177,2075.0,2074.0,3.83974495]
[1772053167847,2.2554625,2074.9,2074.0,3.83979495]
[1772053168144,2.2554625,2074.7,2073.6,2.81559145]
[1772053168350,2.2554625,2074.4,2073.6,2.81559145]
[1772053168725,2.2554625,2074.4,2073.6,1.20559145]
[1772053169027,2.2554625,2074.4,2073.5,4.97832237]
[1772053169227,2.2554625,2074.3,2073.4,1.20572267]
[1772053169549,2.2554625,2074.6,2073.7,4.48178299]
[1772053169776,2.2554625,2074.9,2074.2,0.001]
[1772053170653,2.29813984,2074.8,2074.2,0.001]
[1772053170859,3.50290105,2075.1,2074.2,0.001]
[1772053171240,2.29813984,2075.0,2074.2,0.001]
[1772053171547,1.20475266,2075.2,2074.4,2.32080266]
[1772053171721,2.29813984,2075.6,2074.5,32.15836737]
[1772053171928,4.6189425,2075.4,2074.3,3.76736737]
[1772053172128,2.29813984,2075.4,2074.5,2.32080266]
[1772053172441,1.20452902,2075.5,2074.6,2.15836737]
[1772053172751,3.50258051,2075.7,2074.7,2.15658924]
[1772053172951,1.20429693,2075.9,2075.0,30.0]
[1772053173144,3.5043792,2076.0,2075.1,2.32080266]
[1772053173344,3.5043792,2076.0,2075.0,3.76558924]
[1772053173561,3.5043792,2076.0,2075.1,1.20476121]
[1772053173764,1.20625085,2076.0,2075.3,2.32080266]
[1772053174073,1.20624251,2076.0,2075.3,2.32080266]
[1772053174272,1.20624251,2076.0,2075.1,1.609]
[1772053174273,3.50438235,2076.0,2075.1,1.609]
[1772053174475,3.50438235,2076.0,2075.0,30.0]
[1772053174652,3.50438235,2076.0,2075.0,3.92980266]
[1772053175080,3.50438235,2076.0,2075.0,1.609]
[1772053175451,3.50438235,2076.0,2075.1,1.20476121]
[1772053175654,3.50438235,2076.0,2075.0,2.81377267]
[1772053175867,3.50438235,2076.0,2075.4,2.32080266]
[1772053175868,1.20623954,2076.0,2075.4,2.32080266]
[1772053176076,1.20623954,2076.0,2075.2,4.47187326]
[1772053176259,0.002,2076.2,2075.5,2.1510706]
[1772053176574,1.20597083,2076.5,2075.8,30.0]
[1772053176878,0.002,2076.5,2075.8,30.0]
[1772053177169,0.002,2076.8,2076.3,2.32080266]
[1772053177377,0.002,2076.8,2076.2,30.0]
[1772053177573,0.002,2076.8,2076.3,1.20406492]
[1772053177774,0.002,2077.1,2076.6,30.0]
[1772053177973,0.002,2077.1,2076.7,2.32080266]
[1772053178154,0.002,2077.1,2076.3,3.7681635]
[1772053178155,0.002,2077.1,2076.6,30.0]
[1772053178357,0.002,2077.1,2076.6,7.259]
[1772053178562,0.002,2077.1,2076.5,2.32080266]
[1772053178762,0.002,2077.1,2076.6,30.0]
[1772053178949,0.002,2077.1,2076.7,3.93680266]
[1772053179148,0.002,2077.1,2076.7,1.616]
[1772053179353,0.002,2077.1,2076.4,1.617]
[1772053179757,0.002,2077.1,2076.7,2.32080266]
[1772053180078,0.002,2077.1,2076.5,2.32080266]
[1772053180278,0.002,2077.1,2076.6,30.0]
[1772053181170,0.002,2077.1,2076.0,4.46055732]
[1772053181372,0.002,2077.1,2076.6,2.32080266]
[1772053181671,0.002,2077.1,2076.6,5.14468851]
[1772053181870,4.81338671,2077.6,2076.8,2.32080266]
[1772053182194,2.29813984,2077.5,2076.5,1.20394895]
[1772053182477,7.1336097,2077.8,2076.7,1.619]
[1772053182478,1.20319568,2077.8,2076.7,1.619]
[1772053182692,1.20319568,2077.8,2076.8,2.32080266]
[1772053183775,0.002,2078.0,2077.6,2.32080266]
[1772053183975,0.002,2078.0,2077.3,2.32080266]
[1772053184290,0.002,2078.0,2077.5,7.22]
[1772053184490,1.20502055,2078.2,2077.5,7.22]
[1772053185191,1.20502055,2078.2,2077.3,2.13385205]
[1772053185366,0.002,2078.2,2077.7,2.32080266]
[1772053185882,0.002,2078.2,2077.5,2.13181023]
[1772053186480,0.002,2078.2,2077.4,3.94080266]
[1772053186685,0.002,2078.2,2077.5,31.619]
[1772053186889,0.002,2078.2,2077.5,1.619]
[1772053187265,0.002,2078.2,2077.3,1.20348357]
[1772053187591,2.30013984,2078.5,2077.9,2.32080266]
[1772053187893,0.002,2078.5,2078.0,3.94080266]
[1772053188055,0.002,2078.5,2077.8,7.97050507]
[1772053188056,0.002,2078.7,2078.3,27.119]
[1772053188261,1.20469041,2078.7,2077.8,5.64970241]
[1772053188487,1.20469041,2078.7,2078.0,30.0]
[1772053189083,1.20469041,2078.7,2077.9,30.0]
[1772053189287,2.29813984,2078.6,2077.6,31.623]
[1772053189467,2.29813984,2078.6,2077.6,1.623]
[1772053189668,0.002,2078.7,2078.1,2.32080266]
[1772053189889,0.002,2079.0,2078.5,30.0]
[1772053190092,1.20450631,2079.0,2078.5,5.452]
[1772053190366,3.50264615,2079.0,2078.1,2.63440288]
[1772053190588,3.50264615,2079.0,2078.2,1.628]
[1772053190795,3.50264615,2079.0,2077.9,1.20309673]
[1772053190986,2.29813984,2078.9,2078.0,1.629]
[1772053191480,2.29813984,2078.9,2077.8,3.52399696]
[1772053191790,1.20450631,2079.0,2078.4,2.32080266]
[1772053191791,1.20450761,2079.0,2078.4,2.32080266]
[1772053192094,1.20450761,2079.0,2078.3,1.63]
[1772053192724,1.20450761,2079.0,2078.4,34.43959995]
[1772053192725,0.002,2079.0,2078.4,34.43959995]
[1772053193003,0.002,2079.0,2078.5,30.0]
[1772053193173,1.20241875,2079.2,2078.5,30.0]
[1772053193376,2.29813984,2079.6,2078.6,1.631]
[1772053193696,2.29813984,2079.6,2078.9,2.32080266]
[1772053194002,2.29813984,2080.0,2079.1,7.554]
[1772053194163,2.29813984,2080.0,2079.1,1.631]
[1772053195299,0.002,2079.3,2078.8,30.0]
[1772053195596,2.09779777,2079.3,2078.3,1.63]
[1772053195803,1.20192307,2080.0,2078.3,1.63]
[1772053195804,2.09579777,2080.0,2079.1,2.32080266]
[1772053195977,2.09579777,2080.0,2079.2,2.32080266]
[1772053196194,2.09579777,2080.0,2078.9,2.32080266]
[1772053196416,2.09579777,2079.9,2078.7,3.73823684]
[1772053196601,2.09579777,2079.9,2078.8,2.32080266]
[1772053197494,2.09579777,2079.7,2078.5,30.0]
[1772053197682,1.91668653,2080.1,2079.2,2.32080266]
[1772053197888,2.09579777,2080.3,2079.0,3.95280266]
[1772053198085,2.09579777,2080.3,2079.2,2.32080266]
[1772053198291,1.20163422,2080.5,2078.7,0.08192]
[1772053198292,2.09579777,2080.0,2078.7,3.66180266]
[1772053198516,2.09579777,2080.0,2078.9,2.32080266]
[1772053198819,2.09579777,2079.8,2078.6,2.10523684]
[1772053198989,2.09579777,2079.8,2078.5,31.632]
[1772053199187,2.09579777,2079.8,2078.4,2.32080266]
[1772053199497,2.09579777,2079.8,2077.0,10.59277678]
[1772053199498,0.72275663,2077.1,2075.3,2.10523684]
[1772053199721,2.09579777,2078.1,2076.7,4.4260395]
[1772053199891,13.98176497,2079.5,2077.0,2.10523684]
[1772053199892,2.09579777,2078.5,2077.0,2.10523684]
[1772053200090,2.09579777,2078.5,2077.0,2.10443684]
[1772053200298,2.09579777,2078.3,2076.7,0.78]
[1772053200525,2.09579777,2078.3,2076.9,2.10523684]
[1772053200697,2.09579777,2078.3,2077.0,32.10523684]
[1772053200996,2.32080266,2077.7,2077.0,0.83238059]
[1772053201197,2.09579777,2078.1,2076.8,2.32080266]
[1772053201625,2.32080266,2077.7,2076.6,1.637]
[1772053201912,3.34514942,2077.9,2076.9,2.32080266]
[1772053202116,1.24935165,2077.9,2076.8,30.0]
[1772053202306,1.20307988,2078.0,2076.8,2.10523684]
[1772053202894,4.41660043,2077.8,2076.4,2.10523684]
[1772053203093,4.41660043,2077.8,2076.5,1.639]
[1772053203296,5.34490315,2077.8,2076.5,1.639]
[1772053203500,1.20331151,2077.6,2076.5,1.639]
[1772053203904,1.20331151,2077.6,2076.5,3.74423684]
[1772053204099,1.20331151,2077.6,2076.5,2.84294395]
[1772053204318,4.81173624,2078.3,2077.0,5.35434222]
[1772053204506,1.2029641,2078.2,2077.1,3.74423684]
[1772053204704,1.2029641,2078.2,2077.2,30.0]
[1772053204916,1.2029641,2078.2,2076.7,2.10523684]
[1772053204917,5.34490315,2078.1,2076.7,2.10523684]
[1772053205120,5.34490315,2077.5,2076.3,2.10523684]
[1772053205320,3.24910538,2076.9,2075.8,2.10523684]
[1772053205616,1.20365912,2077.0,2075.8,2.10523684]
[1772053205795,1.20365912,2077.0,2075.8,6.55869556]
[1772053206192,1.20365912,2077.0,2075.8,5.35434222]
[1772053206392,1.20365912,2077.0,2075.9,30.0]
[1772053206792,1.20365912,2077.0,2076.0,30.0]